bitfinex/quotes_ETHUSD_20240717
["timestamp","ask_amount","ask_price","bid_price","bid_amount"]
[1721217787469,5.18164,3461.2,3460.2,2.88995]
[1721217787771,5.88928,3461.1,3460.2,2.88995]
[1721217787985,2.88924,3461.2,3460.3,3.467913]
[1721217788194,2.88924,3461.2,3460.4,2.88983]
[1721217789057,2.88924,3461.2,3460.4,2.98183]
[1721217791117,5.8887,3461.8,3460.6,4.58967]
[1721217791294,5.8887,3461.8,3460.4,2.98176]
[1721217791295,2.88905,3461.4,3460.4,2.98176]
[1721217791596,2.88911,3461.3,3460.4,2.98179]
[1721217791944,2.457,3461.5,3460.4,2.98177]
[1721217792194,2.457,3461.5,3460.8,2.88948]
[1721217792195,5.457,3461.5,3460.8,2.88948]
[1721217792350,3.83266,3461.7,3460.8,2.88948]
[1721217792546,2.457,3461.9,3460.8,2.88948]
[1721217792783,2.457,3461.9,3461.0,2.88928]
[1721217792784,2.88872,3461.8,3461.0,2.88928]
[1721217793251,5.3264,3462.0,3461.1,2.88923]
[1721217793797,5.32644,3462.0,3460.8,2.88947]
[1721217793949,5.32644,3462.0,3460.9,2.88941]
[1721217793950,2.88875,3461.7,3460.9,2.88941]
[1721217794294,2.88875,3461.7,3461.0,2.88928]
[1721217794450,2.88864,3461.9,3461.0,2.88928]
[1721217794787,2.88869,3461.8,3461.0,2.88928]
[1721217795011,2.88869,3461.8,3460.9,3.594521]
[1721217795012,2.88875,3461.7,3460.9,0.705111]
[1721217795314,2.88875,3461.7,3461.0,2.88933]
[1721217795465,2.88864,3461.9,3461.0,3.4949441]
[1721217795666,2.88847,3462.1,3461.2,2.88917]
[1721217795991,5.88851,3462.0,3461.2,2.88917]
[1721217796309,3.0,3462.0,3461.2,2.88917]
[1721217796484,5.88851,3462.0,3461.2,2.88917]
[1721217796992,2.8882,3462.4,3461.3,2.88905]
[1721217797320,2.457,3462.7,3461.2,2.33840141]
[1721217797321,2.457,3462.7,3461.7,2.88875]
[1721217797519,3.0394448,3462.8,3461.7,2.88875]
[1721217797670,3.0394448,3462.8,3461.7,2.88869]
[1721217797671,2.88792,3462.7,3461.7,2.88869]
[1721217798010,3.0394848,3462.8,3462.0,2.88845]
[1721217798184,3.0394848,3462.8,3462.0,3.466147]
[1721217798393,0.1516048,3462.8,3462.1,2.88841]
[1721217798736,0.1516048,3462.8,3462.3,2.8882]
[1721217798871,2.2696,3462.7,3461.5,2.92]
[1721217799076,2.2696,3462.7,3461.0,1.50799097]
[1721217799077,2.88855,3462.0,3461.0,2.88933]
[1721217799270,2.88853,3462.0,3461.1,2.88925]
[1721217799533,2.8892,3461.2,3460.4,0.092]
[1721217799808,2.8891,3461.3,3460.4,0.092]
[1721217799969,2.88918,3461.2,3460.4,0.092]
[1721217800174,5.34599,3461.5,3460.6,2.88963]
[1721217800369,2.88889,3461.6,3460.7,2.88957]
[1721217800574,2.2546,3461.8,3460.9,2.88934]
[1721217801018,2.2546,3461.8,3460.8,1.7]
[1721217801019,2.88859,3461.9,3461.0,2.88933]
[1721217801185,2.88859,3461.9,3461.1,2.88924]
[1721217801507,5.4523,3462.2,3460.6,5.4949]
[1721217801508,2.88852,3462.0,3461.2,4.58916]
[1721217801699,2.4523,3462.2,3461.2,1.7]
[1721217802816,2.88858,3461.9,3461.2,1.7]
[1721217802983,2.88858,3461.9,3461.0,2.88933]
[1721217803495,2.88858,3461.9,3460.8,4.58949]
[1721217803496,2.88858,3461.9,3460.9,2.88942]
[1721217803698,2.8887,3461.8,3461.0,0.758942]
[1721217803909,2.4523,3462.2,3461.1,2.88922]
[1721217804112,2.88859,3461.9,3461.1,2.88922]
[1721217804320,3.0,3462.5,3461.2,4.58915]
[1721217804321,2.88847,3462.1,3461.2,4.58915]
[1721217804493,2.88819,3462.4,3461.4,2.88897]
[1721217804693,3.64190885,3462.3,3461.4,2.88897]
[1721217805508,3.64190885,3462.3,3461.2,4.58915]
[1721217805509,2.88853,3462.0,3461.2,1.7]
[1721217805714,3.64190885,3462.3,3461.2,1.7]
[1721217805915,3.64190885,3462.3,3460.4,9.232]
[1721217805916,2.88845,3462.1,3460.4,9.232]
[1721217806133,2.88931,3461.1,3460.4,0.092]
[1721217806340,2.88943,3460.9,3460.4,0.092]
[1721217807117,2.88944,3460.9,3460.4,0.092]
[1721217807350,2.88931,3461.1,3460.4,0.092]
[1721217807515,5.1511,3461.3,3460.4,0.092]
[1721217807516,2.88973,3460.6,3460.4,0.092]
[1721217808035,2.88975,3460.5,3460.4,0.092]
[1721217808237,6.3295,3460.5,3460.4,0.092]
[1721217809390,2.88954,3460.8,3460.4,0.092]
[1721217809706,3.0,3460.7,3460.4,0.092]
[1721217810025,3.0,3460.8,3460.4,0.092]
[1721217810229,3.0,3460.9,3460.4,0.092]
[1721217810523,6.178374,3460.9,3460.4,0.092]
[1721217810896,2.88923,3461.2,3460.4,0.092]
[1721217811137,5.15114,3461.3,3460.4,0.092]
[1721217811419,2.88917,3461.2,3460.4,2.98182]
[1721217811620,2.88926,3461.1,3460.4,0.092]
[1721217812112,2.88926,3461.1,3460.4,2.98183]
[1721217812431,2.88926,3461.1,3460.4,0.092]
[1721217812618,5.15114,3461.3,3460.4,0.092]
[1721217812828,2.88917,3461.2,3460.4,2.98182]
[1721217813329,5.15115,3461.3,3460.4,2.98182]
[1721217813540,2.88917,3461.2,3460.4,2.98182]
[1721217813696,2.88926,3461.1,3460.4,0.092]
[1721217813893,2.88942,3460.9,3460.4,0.092]
[1721217814097,2.8895,3460.8,3460.4,0.092]
[1721217814331,2.88975,3460.5,3460.4,0.092]
[1721217814740,2.88967,3460.6,3460.4,0.092]
[1721217815064,3.273,3460.9,3460.4,0.092]
[1721217815242,3.0,3461.5,3460.4,0.092]
[1721217815243,2.88929,3461.1,3460.4,0.092]
[1721217815705,2.88912,3461.3,3460.4,2.98183]
[1721217815900,2.88912,3461.3,3460.5,2.88971]
[1721217816552,3.273,3461.4,3460.4,0.092]
[1721217816697,2.88959,3460.7,3460.4,0.092]
[1721217817121,2.8895,3460.8,3460.4,0.092]
[1721217817324,5.8891,3461.3,3460.4,0.092]
[1721217817547,2.88932,3461.1,3460.4,0.092]
[1721217817849,1.46621,3461.2,3460.4,0.092]
[1721217817850,2.88959,3460.7,3460.4,0.092]
[1721217818003,2.88971,3460.6,3460.4,0.092]
[1721217818203,2.88975,3460.5,3460.4,0.092]
[1721217818943,2.88968,3460.6,3460.4,0.092]
[1721217819305,2.88951,3460.8,3460.4,0.092]
[1721217819506,3.0,3460.7,3460.4,0.092]
[1721217819717,3.0,3460.8,3460.4,0.092]
[1721217819943,2.8895,3460.8,3460.4,0.092]
[1721217820135,0.577892,3460.8,3460.4,0.092]
[1721217820330,3.0,3460.8,3460.4,0.092]
[1721217821845,5.88951,3460.8,3460.4,0.092]
[1721217822254,2.88975,3460.5,3460.4,0.092]
[1721217824043,5.88954,3460.8,3460.4,0.092]
[1721217824237,2.88961,3460.7,3460.4,0.092]
[1721217824477,3.0,3460.8,3460.4,0.092]
[1721217826067,3.0,3460.9,3460.4,0.092]
[1721217826257,5.88935,3461.0,3460.4,0.092]
[1721217826454,3.0,3461.0,3460.4,0.092]
[1721217826777,2.8892,3461.2,3460.4,0.679207]
[1721217827087,2.88909,3461.3,3460.4,3.569037]
[1721217827379,3.273,3461.4,3460.5,2.88974]
[1721217827585,6.16206,3461.4,3460.5,2.88974]
[1721217828084,2.88923,3461.2,3460.4,0.679207]
[1721217828287,2.88923,3461.2,3460.5,0.4819907]
[1721217828501,2.88923,3461.2,3460.4,0.679207]
[1721217828502,3.273,3461.4,3460.4,0.092]
[1721217828801,2.88964,3460.7,3460.4,0.092]
[1721217829150,2.88967,3460.6,3460.4,0.092]
[1721217829894,2.88964,3460.7,3460.4,0.092]
[1721217830195,2.88933,3461.0,3460.4,0.092]
[1721217830402,2.88942,3460.9,3460.4,0.092]
[1721217830565,2.88964,3460.7,3460.4,0.092]
[1721217831377,2.88944,3460.9,3460.4,0.092]
[1721217831791,5.77893,3460.9,3460.4,0.092]
[1721217831991,2.88944,3460.9,3460.4,0.092]
[1721217832463,2.88925,3461.1,3460.4,0.092]
[1721217832860,2.88934,3461.0,3460.4,0.092]
[1721217833168,2.88934,3461.0,3460.4,0.849192]
[1721217833549,2.88947,3460.9,3460.4,0.092]
[1721217833785,2.88957,3460.8,3460.4,0.092]
[1721217834493,4.46650493,3461.4,3460.4,0.092]
[1721217834653,2.88975,3460.5,3460.4,0.092]
[1721217835395,5.7795,3460.5,3460.4,0.092]
[1721217836052,2.88975,3460.5,3460.4,0.092]
[1721217836267,2.88946,3460.9,3460.4,0.092]
[1721217836490,2.88955,3460.8,3460.4,0.092]
[1721217837068,2.88946,3460.9,3460.4,0.092]
[1721217837463,2.88953,3460.8,3460.4,0.092]
[1721217837714,2.88959,3460.7,3460.4,0.092]
[1721217838395,2.88968,3460.6,3460.4,0.092]
[1721217839909,2.88957,3460.8,3460.4,0.092]
[1721217840468,0.89734089,3461.2,3460.4,0.092]
[1721217840469,2.88975,3460.5,3460.4,0.092]
[1721217840670,5.7795,3460.5,3460.4,0.092]
[1721217840969,6.3295,3460.5,3460.4,0.092]
[1721217841204,7.25142,3460.5,3460.4,0.092]
[1721217842533,6.70142,3460.5,3460.4,0.092]
[1721217843186,9.59117,3460.5,3460.4,0.092]
[1721217843388,10.14117,3460.5,3460.4,0.092]
[1721217844495,5.7795,3460.5,3460.4,0.092]
[1721217844698,6.91516572,3460.5,3460.4,0.092]
[1721217844916,7.46519919,3460.5,3460.4,0.092]
[1721217845140,5.7795,3460.5,3460.4,0.092]
[1721217845361,6.9151912,3460.5,3460.4,0.092]
[1721217845503,8.10547678,3460.5,3460.4,0.092]
[1721217845707,10.99522678,3460.5,3460.4,0.092]
[1721217845933,13.93992678,3460.5,3460.4,0.092]
[1721217846285,18.13343171,3460.5,3460.4,0.092]
[1721217846436,2.89083,3459.3,3458.9,2.4347]
[1721217846763,2.89083,3459.3,3458.4,7.44]
[1721217846764,2.891,3459.0,3458.4,9.8747]
[1721217847721,2.89109,3458.9,3458.4,9.8747]
[1721217847939,6.16362,3459.5,3457.8,2.4612]
[1721217847940,2.89166,3458.3,3457.8,2.4612]
[1721217848245,2.89126,3458.7,3457.9,4.0]
[1721217848457,2.89126,3458.7,3458.0,1.10532]
[1721217848807,2.8911,3458.9,3458.0,1.10532]
[1721217849007,2.89126,3458.7,3458.0,1.10532]
[1721217850310,2.89117,3458.8,3458.0,1.10532]
[1721217850505,2.89117,3458.8,3457.9,2.89192]
[1721217850506,2.89117,3458.8,3458.1,0.84598874]
[1721217850934,2.89127,3458.7,3458.1,0.84598874]
[1721217851161,2.89102,3459.0,3458.1,3.73772874]
[1721217851469,2.89084,3459.2,3458.1,3.73772874]
[1721217851470,2.8909,3459.2,3458.2,4.1287]
[1721217851760,2.8909,3459.2,3458.3,0.78664287]
[1721217852307,2.8905,3459.6,3458.6,1.7]
[1721217852662,2.8905,3459.6,3458.3,3.67816287]
[1721217852663,2.89075,3459.3,3458.3,3.67816287]
[1721217852948,2.89065,3459.5,3458.5,2.89136]
[1721217853156,2.89037,3459.8,3458.6,1.7]
[1721217853312,2.89017,3460.0,3459.0,4.59099]
[1721217853661,1.81334317,3460.4,3459.0,4.591]
[1721217853662,2.8903,3459.9,3459.0,4.591]
[1721217854147,2.8903,3459.9,3459.1,0.05781239]
[1721217854460,2.8901,3460.1,3459.0,4.591]
[1721217854461,2.89034,3459.8,3459.0,4.591]
[1721217854750,2.89042,3459.7,3458.9,2.4287]
[1721217854956,2.89042,3459.7,3458.9,6.327891]
[1721217855611,2.26,3460.0,3458.5,2.4287]
[1721217855812,2.89081,3459.3,3458.5,5.32011]
[1721217856011,2.89064,3459.5,3458.5,5.32011]
[1721217856223,2.89067,3459.4,3458.6,2.8913]
[1721217856437,2.89067,3459.4,3458.6,3.79110529]
[1721217856957,2.89077,3459.3,3458.6,0.89980529]
[1721217857115,2.89094,3459.1,3458.5,2.4287]
[1721217857312,2.89094,3459.1,3458.2,2.89167]
[1721217857512,2.89094,3459.1,3458.3,3.0]
[1721217857718,2.89101,3459.0,3458.3,3.0]
[1721217858157,2.8911,3458.9,3458.1,2.4204]
[1721217858453,2.89119,3458.8,3458.1,5.4204]
[1721217858748,2.89119,3458.8,3458.2,4.57522]
[1721217859347,2.89129,3458.7,3458.2,3.0]
[1721217859551,2.89129,3458.7,3458.1,2.4204]
[1721217860050,2.89113,3458.9,3458.1,2.4204]
[1721217860364,2.89118,3458.8,3458.1,2.4204]
[1721217860654,2.89126,3458.7,3458.1,2.4204]
[1721217861045,2.89126,3458.7,3457.9,7.44]
[1721217861397,3.469504,3458.7,3457.9,7.44]
[1721217861727,2.89136,3458.6,3457.8,0.3014474]
[1721217861928,2.89149,3458.5,3457.8,0.3014474]
[1721217862626,5.35136,3458.6,3457.8,0.3014474]
[1721217862825,2.8916,3458.3,3457.8,0.3014474]
[1721217863171,3.715911,3458.3,3457.5,2.89221]
[1721217863460,2.8916,3458.3,3457.5,2.89221]
[1721217863632,2.8916,3458.3,3457.6,0.30152435]
[1721217863826,2.89151,3458.4,3457.6,0.30152435]
[1721217864223,2.89161,3458.3,3457.6,0.30152435]
[1721217864640,2.89151,3458.4,3457.6,0.30152435]
[1721217864859,2.89151,3458.4,3457.6,0.91013779]
[1721217865080,0.578244,3458.7,3457.6,0.91013779]
[1721217865081,2.89129,3458.7,3457.8,1.7]
[1721217865351,2.46,3459.0,3458.0,5.25374]
[1721217865352,2.89117,3458.8,3458.0,5.25374]
[1721217866150,2.89126,3458.7,3458.0,5.25374]
[1721217867743,2.89109,3458.9,3458.0,5.25374]
[1721217867943,2.89124,3458.8,3458.0,5.25374]
[1721217868151,2.89126,3458.7,3458.0,5.25374]
[1721217869462,2.89118,3458.8,3458.0,5.25374]
[1721217869669,2.89118,3458.8,3458.0,6.238307]
[1721217870022,2.89102,3459.0,3458.1,2.89175]
[1721217871025,2.89117,3458.8,3458.1,2.89175]
[1721217871323,2.89126,3458.7,3457.9,2.89187]
[1721217872959,3.565996,3458.8,3457.9,2.89186]
[1721217873158,2.89117,3458.8,3458.0,2.89179]
[1721217873860,2.89117,3458.8,3457.9,2.89186]
[1721217873861,2.89126,3458.7,3457.9,2.89186]
[1721217874754,2.89126,3458.7,3457.7,5.24247]
[1721217874924,2.89143,3458.5,3457.7,5.24247]
[1721217875524,2.89143,3458.5,3457.7,2.3504]
[1721217875727,0.578243,3458.7,3457.6,0.30152435]
[1721217875728,2.89186,3458.0,3457.6,0.30152435]
[1721217875966,2.89186,3458.0,3457.2,12.927]
[1721217875967,2.89192,3457.9,3457.2,9.927]
[1721217876264,2.89186,3458.0,3457.2,9.927]
[1721217876265,2.89201,3457.8,3457.2,2.487]
[1721217876492,2.89186,3458.0,3457.2,2.487]
[1721217876702,2.89202,3457.8,3457.2,2.78855694]
[1721217876992,2.89194,3457.9,3457.2,2.78855694]
[1721217877494,2.89146,3458.5,3457.2,2.78855694]
[1721217877495,2.89168,3458.2,3457.2,2.78855694]
[1721217877795,2.885243,3458.7,3457.3,2.89235]
[1721217877796,2.89151,3458.4,3457.3,2.89235]
[1721217877997,2.89126,3458.7,3457.7,2.89204]
[1721217878170,2.89118,3458.8,3457.8,1.7]
[1721217878514,2.89118,3458.8,3458.0,5.37878]
[1721217878801,2.89118,3458.8,3458.1,3.888814]
[1721217878995,2.8911,3458.9,3458.1,3.888814]
[1721217879294,2.89081,3459.3,3458.4,2.89145]
[1721217879592,2.89081,3459.3,3458.5,0.05782259]
[1721217879895,2.89084,3459.2,3458.4,2.89145]
[1721217880086,2.89084,3459.2,3458.5,0.748298]
[1721217880459,2.89074,3459.4,3458.5,0.8061206]
[1721217880866,2.89085,3459.2,3458.5,0.748298]
[1721217881185,2.89047,3459.7,3458.9,2.89108]
[1721217881698,6.1693,3459.9,3458.9,2.89108]
[1721217881699,2.89052,3459.6,3458.9,2.89108]
[1721217881861,2.89036,3459.8,3459.0,2.89099]
[1721217882290,2.89036,3459.8,3458.9,2.89108]
[1721217882291,2.89042,3459.7,3458.9,2.89102]
[1721217883298,2.89042,3459.7,3458.9,5.78203]
[1721217883593,2.89042,3459.7,3458.9,2.89101]
[1721217884576,2.89038,3459.8,3459.0,2.89099]
[1721217885403,2.89035,3459.8,3459.0,2.89099]
[1721217885597,2.89044,3459.7,3458.7,2.89119]
[1721217885766,2.89064,3459.5,3458.5,2.89138]
[1721217886097,2.89064,3459.5,3458.5,2.89142]
[1721217886098,2.89082,3459.3,3458.5,2.89142]
[1721217886464,5.34964,3459.5,3458.7,2.89125]
[1721217886992,3.714687,3459.4,3458.4,7.44]
[1721217888086,2.8911,3458.9,3458.4,7.44]
[1721217888289,2.89136,3458.6,3458.4,7.44]
[1721217888583,2.89117,3458.8,3457.8,12.68149777]
[1721217888584,2.89117,3458.8,3458.1,2.89175]
[1721217888786,5.35,3459.1,3458.3,2.89153]
[1721217889011,2.89135,3458.6,3457.8,7.74149777]
[1721217889209,2.89135,3458.6,3457.8,7.44]
[1721217889419,5.3506,3458.3,3457.2,11.37400859]
[1721217889592,2.459,3457.9,3457.3,4.0]
[1721217889801,2.459,3458.3,3457.3,4.0]
[1721217890037,3.23123,3458.3,3457.3,4.0]
[1721217890212,6.12288,3458.3,3457.4,2.89232]
[1721217890422,2.89159,3458.3,3457.4,2.89232]
[1721217892333,2.89168,3458.2,3457.4,2.89232]
[1721217892544,2.89185,3458.0,3457.3,0.30151783]
[1721217892714,2.89185,3458.0,3457.2,2.8925]
[1721217893646,2.89168,3458.2,3457.2,2.8925]
[1721217893801,2.89168,3458.2,3457.2,3.94257475]
[1721217894841,5.2633,3458.5,3457.2,3.94257475]
[1721217894842,2.89182,3458.1,3457.2,3.94257475]
[1721217895329,2.8916,3458.3,3457.2,1.05007475]
[1721217895534,2.8916,3458.3,3457.5,2.89226]
[1721217895838,2.8916,3458.3,3457.3,2.8924]
[1721217896036,3.996233,3458.3,3457.3,2.8924]
[1721217896247,3.996233,3458.3,3457.2,0.30155775]
[1721217896248,2.8919,3458.0,3457.2,0.30155775]
[1721217896411,2.89167,3458.2,3457.1,2.89254]
[1721217897008,2.89193,3457.9,3457.1,2.89254]
[1721217897213,2.89193,3457.9,3457.2,2.89251]
[1721217897534,1.104633,3458.3,3457.2,2.89251]
[1721217897729,2.89185,3458.0,3457.2,2.89251]
[1721217897930,2.89167,3458.2,3457.3,2.89241]
[1721217898241,2.89156,3458.4,3457.4,5.22441]
[1721217898448,2.89167,3458.2,3457.4,5.22441]
[1721217898813,2.89167,3458.2,3457.4,2.3321]
[1721217899007,2.89167,3458.2,3457.2,0.30154241]
[1721217899008,2.89177,3458.1,3457.2,0.30154241]
[1721217899244,2.89193,3457.9,3457.2,0.30154241]
[1721217899443,2.89167,3458.2,3457.2,0.30154241]
[1721217899444,2.89167,3458.2,3457.2,3.19402241]
[1721217899646,2.89193,3457.9,3457.2,0.30154241]
[1721217899854,2.89215,3457.7,3457.2,0.30154241]
[1721217900033,2.89215,3457.7,3456.6,12.82019]
[1721217900034,2.89219,3457.6,3456.6,12.82019]
[1721217900356,2.89215,3457.7,3456.6,2.4872]
[1721217900357,2.89226,3457.5,3456.6,2.4872]
[1721217900707,5.7846,3457.5,3456.6,2.4872]
[1721217900943,2.8924,3457.4,3456.6,5.918233]
[1721217901145,2.89226,3457.5,3456.6,5.918233]
[1721217901446,2.89194,3457.9,3457.0,2.89266]
[1721217901654,2.8917,3458.2,3457.4,2.89233]
[1721217902026,2.89162,3458.3,3457.4,2.89233]
[1721217902227,2.3406,3458.5,3457.6,2.89216]
[1721217902228,2.89147,3458.5,3457.6,2.89216]
[1721217902786,2.8911,3458.9,3458.0,2.89178]
[1721217903056,2.8911,3458.9,3458.1,2.2548]
[1721217903057,2.89117,3458.8,3458.1,2.2548]
[1721217903214,2.89117,3458.8,3457.8,2.89194]
[1721217903215,2.89127,3458.7,3457.7,5.14687]
[1721217903412,2.89147,3458.5,3457.7,5.14689]
[1721217903618,2.89147,3458.5,3457.7,2.2548]
[1721217903949,2.89147,3458.5,3457.4,10.33233]
[1721217903950,2.89164,3458.3,3457.4,7.44]
[1721217904161,2.8917,3458.2,3457.4,7.44]
[1721217904466,2.8917,3458.2,3457.4,2.89232]
[1721217904625,2.8917,3458.2,3457.4,3.996269]
[1721217905524,2.89177,3458.1,3457.4,1.103949]
[1721217905725,2.89177,3458.1,3457.4,4.103949]
[1721217905920,3.03365,3458.3,3457.4,6.996289]
[1721217906154,0.142,3458.3,3457.4,4.103949]
[1721217906373,0.142,3458.3,3457.5,0.8058749]
[1721217906595,0.142,3458.3,3457.6,2.89211]
[1721217906902,0.142,3458.3,3457.3,2.2548]
[1721217906903,0.142,3458.3,3457.3,5.14715]
[1721217907207,0.142,3458.3,3457.5,2.89221]
[1721217907348,0.142,3458.3,3457.8,2.89199]
[1721217907808,0.142,3458.3,3458.1,2.89169]
[1721217907994,0.142,3458.3,3458.2,2.89167]
[1721217908777,0.142,3458.3,3458.0,2.89177]
[1721217909098,0.142,3458.3,3458.2,2.89167]
[1721217909250,0.142,3458.3,3458.2,5.27907]
[1721217909584,0.142,3458.3,3458.2,6.266152]
[1721217909789,0.142,3458.3,3457.9,2.89188]
[1721217910084,0.142,3458.3,3458.1,2.89173]
[1721217910247,0.142,3458.3,3458.2,2.89167]
[1721217911145,0.142,3458.3,3458.2,8.05884]
[1721217911398,0.142,3458.3,3458.2,15.1089677]
[1721217911618,0.142,3458.3,3458.2,16.28493233]
[1721217911788,1e-08,3458.3,3458.2,17.29004974]
[1721217911987,1e-08,3458.3,3458.2,16.28493233]
[1721217912676,5.78112,3459.6,3458.7,2.89118]
[1721217912677,2.89054,3459.6,3458.7,2.89118]
[1721217913077,2.89054,3459.6,3458.8,2.89116]
[1721217913375,2.89054,3459.6,3458.8,3.469394]
[1721217913627,5.7541,3459.9,3458.8,3.469394]
[1721217913628,2.8904,3459.8,3459.0,2.89095]
[1721217914201,2.8904,3459.8,3459.1,2.89092]
[1721217914634,4.9321,3459.9,3458.7,2.89124]
[1721217914798,2.89068,3459.4,3458.7,2.89124]
[1721217915003,2.89094,3459.1,3458.2,5.18109233]
[1721217915198,2.89114,3458.9,3458.1,7.44]
[1721217915554,2.4663,3459.1,3457.6,2.89217]
[1721217915555,2.458,3458.4,3457.6,2.89217]
[1721217915702,5.34951,3458.4,3457.5,10.33218]
[1721217915903,2.89177,3458.1,3457.5,7.44]
[1721217916102,2.89177,3458.1,3457.4,2.89234]
[1721217916355,2.4252,3458.3,3457.5,0.60862935]
[1721217916508,2.89172,3458.2,3457.5,0.60862935]
[1721217916725,2.89172,3458.2,3457.2,2.89251]
[1721217916726,2.89177,3458.1,3457.2,2.89251]
[1721217916924,2.89177,3458.1,3457.3,2.89242]
[1721217917440,2.89185,3458.0,3457.2,0.30148869]
[1721217917612,2.89193,3457.9,3457.2,0.30148869]
[1721217918549,2.89193,3457.9,3457.2,3.19399869]
[1721217918735,2.89193,3457.9,3457.2,0.30148869]
[1721217919048,2.89177,3458.1,3457.2,4.54668956]
[1721217919248,2.89168,3458.2,3457.2,4.54668956]
[1721217919409,0.90404882,3458.7,3457.9,2.89192]
[1721217919617,3.0,3458.8,3457.9,2.89192]
[1721217919914,3.0,3458.8,3457.9,3.470321]
[1721217920225,2.89134,3458.6,3457.9,0.578401]
[1721217920435,2.89134,3458.6,3457.7,2.89209]
[1721217920636,2.3938,3458.8,3457.3,7.44]
[1721217920836,2.89189,3458.0,3457.3,7.44]
[1721217921037,2.89193,3457.9,3457.2,3.19398869]
[1721217921414,2.89193,3457.9,3457.2,0.30148869]
[1721217921622,2.89193,3457.9,3457.0,2.89267]
[1721217921829,2.89201,3457.8,3457.0,1.561997]
[1721217922063,2.8921,3457.7,3457.0,1.561997]
[1721217922434,2.89218,3457.6,3456.7,2.89291]
[1721217922833,2.89218,3457.6,3456.5,2.89306]
[1721217922834,2.89239,3457.4,3456.6,2.893]
[1721217923857,2.89244,3457.3,3456.3,5.24434]
[1721217924031,2.89239,3457.4,3456.3,5.24434]
[1721217924246,2.89259,3457.1,3456.4,0.53530337]
[1721217924430,2.89259,3457.1,3456.4,3.42845337]
[1721217925725,2.89259,3457.1,3456.3,2.3511]
[1721217925925,2.89259,3457.1,3456.2,2.89331]
[1721217926803,2.89282,3456.9,3456.0,7.44]
[1721217926960,2.89284,3456.8,3456.0,2.91736562]
[1721217927165,2.89284,3456.8,3456.0,0.30142888]
[1721217927363,2.89261,3457.1,3456.0,0.30142888]
[1721217927364,2.89275,3457.0,3456.2,2.89333]
[1721217927622,2.89277,3456.9,3456.2,2.89333]
[1721217928599,2.89277,3456.9,3456.0,0.30142888]
[1721217928600,2.89277,3456.9,3456.0,3.19487888]
[1721217928799,2.89277,3456.9,3456.1,2.89342]
[1721217931797,0.07470131,3456.8,3456.1,2.89342]
[1721217932609,2.96756131,3456.8,3456.1,2.89342]
[1721217932778,2.96756131,3456.8,3456.0,1.48673088]
[1721217932985,2.96756131,3456.8,3456.0,4.38023088]
[1721217933184,0.07470131,3456.8,3456.0,0.30142888]
[1721217933386,0.07470131,3456.8,3455.8,2.71957111]
[1721217933387,2.89343,3456.1,3455.8,0.45337111]
[1721217934110,2.89343,3456.1,3455.4,10.33399]
[1721217934413,0.07470131,3456.8,3455.5,0.45364289]
[1721217934597,0.07470131,3456.8,3455.9,2.89359]
[1721217934906,2.89294,3456.7,3455.9,2.89359]
[1721217935110,2.89294,3456.7,3455.8,2.89361]
[1721217935111,0.07470131,3456.8,3456.0,2.8935]
[1721217935511,2.96755131,3456.8,3456.1,2.89343]
[1721217935875,0.07470131,3456.8,3456.1,2.89343]
[1721217936072,0.07470131,3456.8,3456.1,3.472132]
[1721217936274,2.96754131,3456.8,3456.1,3.472132]
[1721217936734,2.96754131,3456.8,3455.7,2.3086]
[1721217936933,2.96754131,3456.8,3455.9,2.89358]
[1721217937291,2.96754131,3456.8,3455.7,2.89375]
[1721217937292,2.8931,3456.5,3455.7,2.89375]
[1721217937493,0.07470131,3456.8,3455.6,1.12392139]
[1721217937494,2.89335,3456.2,3455.6,1.12392139]
[1721217937748,2.89343,3456.1,3455.5,0.45364289]
[1721217938502,2.89332,3456.3,3455.5,3.34757289]
[1721217938503,0.0716549,3456.0,3455.5,3.34757289]
[1721217938724,2.89332,3456.3,3455.5,3.34757289]
[1721217938924,0.00242687,3456.2,3455.5,3.34757289]
[1721217939139,0.07391717,3456.2,3455.5,3.34757289]
[1721217939437,0.07391717,3456.2,3455.6,3.78212539]
[1721217940005,2.89318,3456.4,3455.7,2.89375]
[1721217940206,0.07384969,3456.1,3455.8,2.89366]
[1721217940424,5.18843,3456.6,3455.8,2.89366]
[1721217940729,0.07379769,3456.0,3455.8,2.89366]
[1721217941037,2.462,3456.5,3455.9,0.66757854]
[1721217941329,5.35512,3456.5,3455.6,0.88830539]
[1721217941638,5.35512,3456.5,3455.8,2.89367]
[1721217941806,5.35512,3456.5,3455.5,0.2550296]
[1721217941807,2.8934,3456.2,3455.5,0.2550296]
[1721217942005,2.8934,3456.2,3454.4,2.89478]
[1721217942006,2.89393,3455.5,3454.4,2.89478]
[1721217942210,2.462,3455.5,3454.5,0.0578865]
[1721217942402,2.89361,3455.9,3454.8,2.3083]
[1721217942603,2.89594372,3455.8,3454.9,2.89443]
[1721217942816,2.89378,3455.7,3454.9,2.89443]
[1721217943036,2.89378,3455.7,3454.8,5.20281]
[1721217943341,0.00140561,3455.6,3454.8,5.20281]
[1721217943540,2.89526561,3455.6,3454.8,2.3083]
[1721217943710,2.89526561,3455.6,3454.6,3.19576166]
[1721217943897,2.89409,3455.4,3454.5,2.89476]
[1721217944103,2.89409,3455.4,3454.6,3.0]